[Event "CCT Final-RR 2024"]
[Site "Oslo"]
[Date "2024.12.18"]
[Round "4"]
[White "Nepomniachtchi, Ian"]
[Black "Firouzja, Alireza"]
[Result "0-1"]
[ECO "B12"]
[WhiteElo "2755"]
[BlackElo "2763"]
[Annotator "RC"]
[PlyCount "70"]
[EventDate "2024.12.11"]
[EventType "tourn"]
[EventCountry "NOR"]
[SourceTitle "playchess.com"]
[Source "ChessBase"]
[SourceQuality "1"]
[TimeControl "600+2"]

1. e4 {[%emt 0:00:01]} c6 {[%emt 0:00:02]} 2. d4 {[%emt 0:00:08]} d5 {[%emt 0:00:01]} 3. e5 {[%emt 0:00:08]} Bf5 {[%emt 0:00:02]} 4. Nf3 {[%emt 0:00:01]} e6 {[%emt 0:00:01]} 5. Be2 {[%emt 0:00:01]} Nd7 {[%emt 0:00:09]} 6. O-O {[%emt 0:00:03]} a5 {[%emt 0:00:01]} 7. c3 {[%emt 0:00:33]} a4 {[%emt 0:00:16]} 8. Ne1 {[%emt 0:00:03]} f6 {[%emt 0:01:32]} 9. Bd3 {[%emt 0:00:23]} Ne7 {[%emt 0:00:52]} 10. exf6 {[%emt 0:00:12]} Nxf6 {[%emt 0:00:37]} 11. Bg5 {[%emt 0:00:26]} Ne4 {[%emt 0:00:35]} 12. Bxe4 {[%emt 0:00:34]} Bxe4 {[%emt 0:00:41]} 13. Nd2 {[%emt 0:00:16]} Bf5 {[%emt 0:00:41]} 14. Qh5+ {[%emt 0:01:16]} Bg6 {[%emt 0:00:52]} 15. Qe2 {[%emt 0:00:01]} Qc8 {[%emt 0:01:05]} 16. Nd3 {[%emt 0:00:16]} Nf5 {[%emt 0:00:47]} 17. Rae1 {[%emt 0:00:41]} Bd6 {[%emt 0:00:04]} 18. g4 {[%emt 0:00:59]} Nh6 {[%emt 0:00:07]} 19. Ne5 {[%emt 0:00:49]} Nf7 {[%emt 0:00:48]} 20. Nxg6 {[%emt 0:01:41]} hxg6 {[%emt 0:00:03]} 21. Nf3 {[%emt 0:00:24]} e5 {[%emt 0:01:01]} 22. Nxe5 {[%emt 0:00:26]} Nxg5 {[%emt 0:00:12]} 23. Nc4+ {[%emt 0:00:08]} Kf8 {[%emt 0:00:00]} 24. Nxd6 {[%emt 0:00:07]} Qd7 {[%emt 0:00:02]} 25. f4 {[%emt 0:00:41]} Nh3+ {[%emt 0:00:01]} 26. Kg2 {[%emt 0:00:03]} Qxd6 {[%emt 0:00:01]} 27. Qd3 {[%emt 0:00:25]} Kg8 {[%emt 0:00:11]} 28. Re5 {[%emt 0:00:02]} Rf8 {[%emt 0:00:02]} 29. Qe3 {[%emt 0:00:02]} Qf6 {[%emt 0:00:04]} 30. g5 {[%emt 0:00:07]} Nxf4+ {[%emt 0:00:04]} 31. Kh1 {[%emt 0:00:01]} Qf7 {[%emt 0:00:02]} 32. Rf3 {[%emt 0:00:04]} Rh4 {[%emt 0:00:02]} 33. Qf2 {[%emt 0:00:01]} Rh3 {[%emt 0:00:04]} 34. Ree3 {[%emt 0:00:04]} Rxf3 {[%emt 0:00:01]} 35. Rxf3 {[%emt 0:00:00]} Qf5 {[%emt 0:00:01]} 0-1

[Event "CCT Final-RR 2024"]
[Site "Oslo"]
[Date "2024.12.18"]
[Round "4"]
[White "Aronian, Levon"]
[Black "Lazavik, Denis"]
[Result "1-0"]
[ECO "C28"]
[WhiteElo "2747"]
[BlackElo "2578"]
[Annotator "TA"]
[PlyCount "103"]
[EventDate "2024.12.11"]
[EventType "tourn"]
[EventCountry "NOR"]
[SourceTitle "playchess.com"]
[Source "ChessBase"]
[SourceQuality "1"]
[TimeControl "600+2"]

{[%evp 55,103,82,78,79,89,74,115,64,110,96,98,99,549,241,290,244,266,276,270,261,429,405,473,417,455,363,372,368,321,299,579,571,728,435,486,464,490,291,508,479,6508,5758,2892,517,29992,29993,29993,29994,29995,29994]} 1. e4 {[%emt 0:00:02]} e5 {[%emt 0:00:01]} 2. Bc4 {[%emt 0:00:02]} Nf6 {[%emt 0:00:03]} 3. d3 {[%emt 0:00:01]} Nc6 {[%emt 0:00:02]} 4. Nc3 {[%emt 0:00:02]} Bb4 {[%emt 0:00:02]} 5. Nf3 {[%emt 0:00:09]} d5 {[%emt 0:00:16]} 6. exd5 {[%emt 0:00:02]} Nxd5 {[%emt 0:00:01]} 7. O-O {[%emt 0:00:02]} Bxc3 {[%emt 0:00:54]} 8. bxc3 {[%emt 0:00:01]} O-O {[%emt 0:00:03]} 9. Bd2 {[%emt 0:00:02]} Bg4 {[%emt 0:00:05]} 10. Rb1 {[%emt 0:00:11]} Nb6 {[%emt 0:00:11]} 11. Bb3 {[%emt 0:00:10]} Qd6 {[%emt 0:00:42]} 12. Qe2 {[%emt 0:00:20]} Kh8 {[%emt 0:00:03]} 13. h3 {[%emt 0:00:16]} Bh5 {[%emt 0:00:02]} 14. g4 {[%emt 0:00:05]} Bg6 {[%emt 0:00:02]} 15. Nh4 {[%emt 0:00:01]} Rae8 {[%emt 0:00:03]} 16. Rbe1 {[%emt 0:00:57]} f5 {[%emt 0:02:01]} 17. Kh1 {[%emt 0:00:16]} f4 {[%emt 0:01:43]} 18. Nxg6+ {[%emt 0:00:52]} Qxg6 {[%emt 0:00:01]} 19. Qe4 {[%emt 0:00:12]} Qh6 {[%emt 0:00:21]} 20. Kh2 {[%emt 0:00:45]} Nc8 {[%emt 0:00:01]} 21. f3 {[%emt 0:00:36]} Nd6 {[%emt 0:00:04]} 22. Qe2 {[%emt 0:00:01]} Nd8 {[%emt 0:00:50]} 23. Qg2 {[%emt 0:00:28]} N8f7 {[%emt 0:00:15]} 24. Re2 {[%emt 0:00:12]} Qf6 {[%emt 0:00:54]} 25. Be1 {[%emt 0:00:07]} Ng5 {[%emt 0:00:36]} 26. h4 {[%emt 0:00:13]} Ne6 {[%emt 0:00:00]} 27. Bf2 {[%emt 0:00:11]} e4 {[%emt 0:00:04]} 28. dxe4 {[%emt 0:00:18]} (28. Bxa7 $2 Qxh4+ 29. Kg1 exf3 $19 (29... e3 $2 30. Qh1 $19)) 28... Qxc3 {[%emt 0:00:01]} 29. Rd1 {[%emt 0:00:15]} (29. Bxa7 $2 b6 30. Rd2 Nb5 31. Bxb6 cxb6 $19) 29... Nf7 {[%emt 0:01:16]} 30. Rd3 {[%emt 0:00:32]} (30. Bxa7 $2 Ne5 31. Rf2 b6 $19) 30... Qf6 {[%emt 0:00:06]} 31. Rd5 {[%emt 0:00:15]} (31. Bxa7 Qxh4+ 32. Qh3 Qxh3+ 33. Kxh3 b6 $19) (31. g5 $16 Qe7 32. Rd5 (32. Bxa7 $2 b6 $17)) 31... c6 {[%emt 0:00:11]} (31... Qb2 $14 {deserves consideration.}) 32. Rf5 {[%emt 0:00:01]} Qe7 {[%emt 0:00:01]} 33. g5 {[%emt 0:00:17]} (33. Bxa7 $6 Qxh4+ 34. Qh3 Qe7 $11) 33... Nd6 $2 {[%emt 0:00:03][%mdl 8192] [#]} (33... b6 $16 34. Qg4 c5) 34. Qg4 {[%emt 0:00:07]} (34. Re5 $142 $1) 34... Nc7 {[%emt 0:00:06]} 35. Rxf4 {[%emt 0:00:13]} Rxf4 {[%emt 0:00:03]} 36. Qxf4 {[%emt 0:00:00]} Rf8 {[%emt 0:00:01]} 37. Qg4 {[%emt 0:00:04]} Nf7 $2 {[%emt 0:00:03]} (37... c5 {is a better defense.} 38. e5 (38. Bxc5 $2 Qe5+ 39. f4 Qxc5 $19) 38... Nf5) 38. f4 $18 {[%emt 0:00:11]} (38. Bxa7 $2 Ne5 39. Qh3 Rxf3 40. Qc8+ Rf8 $19) 38... Nb5 {[%emt 0:00:02]} 39. e5 {[%emt 0:00:47]} Nc3 {[%emt 0:00:01]} 40. Re3 {[%emt 0:00:03]} Nd5 {[%emt 0:00:01]} 41. Rf3 {[%emt 0:00:01]} Nd8 {[%emt 0:00:04]} 42. Bg3 {[%emt 0:00:10]} ({Don't do} 42. Bxa7 Qb4 43. c4 Ne7) 42... Nf7 $2 {[%emt 0:00:02]} (42... g6 43. c4 Nb6) 43. e6 $18 {[%emt 0:00:11]} Nd6 {[%emt 0:00:02]} 44. f5 {[%emt 0:00:01]} Rxf5 {[%emt 0:00:03]} 45. Bxd5 {[%emt 0:01:28]} (45. Rxf5 Ne3 46. Qa4 Nexf5 $16) 45... Rxd5 {[%emt 0:00:02]} 46. c4 {[%emt 0:00:01]} Rd2+ {[%emt 0:00:01]} 47. Kh3 {[%emt 0:00:00]} Kg8 {[%emt 0:00:02]} (47... b6 $142 48. h5 a6) 48. c5 $18 {[%emt 0:00:06]} Ne8 {[%emt 0:00:02]} 49. Qf5 {[%emt 0:00:07]} (49. Rf7 $142 Qxc5 50. Qf3 (50. Rxb7 $2 {is the wrong capture.} Qd5 $19)) 49... Rxa2 {[%emt 0:00:03]} (49... b6 $18 50. Qf7+ Qxf7 51. exf7+ Kf8 52. fxe8=Q+ (52. fxe8=R+ Kxe8 53. Ra3 Rd7 $18) 52... Kxe8) 50. Bd6 {[%emt 0:00:06]} Nxd6 {[%emt 0:00:02]} 51. cxd6 {[%emt 0:00:01]} Qe8 {[%emt 0:00:03]} 52. d7 {[%emt 0:00:03]} 1-0

[Event "CCT Final-RR 2024"]
[Site "Oslo"]
[Date "2024.12.18"]
[Round "4"]
[White "So, Wesley"]
[Black "Keymer, Vincent"]
[Result "1/2-1/2"]
[ECO "A13"]
[WhiteElo "2747"]
[BlackElo "2733"]
[Annotator "TA"]
[PlyCount "87"]
[EventDate "2024.12.11"]
[EventType "tourn"]
[EventCountry "NOR"]
[SourceTitle "playchess.com"]
[Source "ChessBase"]
[SourceQuality "1"]
[TimeControl "600+2"]

{[%evp 28,87,22,12,9,10,22,0,34,40,34,0,32,7,0,-11,-6,-15,6,-24,-7,-38,-43,-56,-47,-61,-54,-51,-33,-30,-45,-53,-24,-43,-27,-20,-47,-139,-129,-157,-149,-222,-213,-212,-153,-260,-184,-683,-702,-677,-515,-914,-675,-1155,-1095,-979,0,0,0,-1000,0,0]} 1. c4 {[%emt 0:00:06]} e6 {[%emt 0:03:07]} 2. g3 {[%emt 0:00:06]} d5 {[%emt 0:00:03]} 3. Bg2 {[%emt 0:00:03]} d4 {[%emt 0:00:08]} 4. Nf3 {[%emt 0:00:05]} Nf6 {[%emt 0:00:07]} 5. d3 {[%emt 0:00:05]} Nc6 {[%emt 0:00:07]} 6. O-O {[%emt 0:00:08]} Bc5 {[%emt 0:00:03]} 7. Nbd2 {[%emt 0:00:35]} O-O {[%emt 0:00:04]} 8. Nb3 {[%emt 0:00:04]} Be7 {[%emt 0:00:03]} 9. e3 {[%emt 0:00:03]} dxe3 {[%emt 0:00:04]} 10. Bxe3 {[%emt 0:00:03]} Ng4 {[%emt 0:00:03]} 11. Bc5 {[%emt 0:00:12]} Bxc5 {[%emt 0:00:04]} 12. Nxc5 {[%emt 0:00:03]} b6 {[%emt 0:00:02]} 13. Nb3 {[%emt 0:00:17]} Bb7 {[%emt 0:00:32]} 14. d4 {[%emt 0:00:11]} Rb8 {[%emt 0:00:28]} 15. Qe2 {[%emt 0:00:20]} Nf6 {[%emt 0:00:03]} 16. Rad1 {[%emt 0:00:07]} Ne7 {[%emt 0:00:11]} 17. Rfe1 {[%emt 0:00:05]} Ng6 {[%emt 0:00:13]} 18. h4 {[%emt 0:00:07]} Qc8 {[%emt 0:00:12]} 19. Bh3 {[%emt 0:00:31]} Qe8 {[%emt 0:00:27]} 20. Ng5 {[%emt 0:00:40]} h6 {[%emt 0:01:06]} 21. h5 {[%emt 0:00:20]} Ne7 {[%emt 0:00:19]} 22. Nf3 {[%emt 0:00:35]} Nc6 {[%emt 0:00:32]} 23. Nh4 {[%emt 0:00:48]} a5 {[%emt 0:00:04]} 24. Rd2 {[%emt 0:01:02]} a4 {[%emt 0:00:13]} 25. Na1 {[%emt 0:00:03]} Na5 {[%emt 0:00:18]} 26. b4 {[%emt 0:00:27]} axb3 {[%emt 0:00:04]} 27. axb3 {[%emt 0:00:04]} b5 {[%emt 0:00:08]} 28. d5 {[%emt 0:00:20]} exd5 {[%emt 0:00:13]} 29. Qd1 {[%emt 0:00:03]} Qd8 {[%emt 0:00:10]} 30. cxb5 {[%emt 0:00:17]} Bc8 {[%emt 0:00:02]} 31. Bxc8 {[%emt 0:00:25]} Qxc8 {[%emt 0:00:07]} 32. Qf3 {[%emt 0:00:03]} (32. Nc2 $15) 32... Re8 $17 {[%emt 0:00:16]} 33. Rxe8+ {[%emt 0:00:18]} Qxe8 {[%emt 0:00:03]} 34. Re2 {[%emt 0:00:04]} (34. Nc2 $17) 34... Qxb5 $19 {[%emt 0:00:03]} 35. Nf5 {[%emt 0:00:03]} Nxb3 {[%emt 0:00:05]} 36. Nc2 {[%emt 0:00:33]} (36. Nxb3 $17 {was necessary.} Qxb3 37. Re3 (37. Nxh6+ $2 gxh6 38. Re3 Qb6 $19)) 36... d4 {[%emt 0:00:03]} 37. Re7 $2 {[%emt 0:00:30]} (37. Ncxd4 Nxd4 38. Nxd4) 37... Nd2 $19 {[%emt 0:00:04]} 38. Nxh6+ {[%emt 0:00:08]} Kh7 {[%emt 0:00:15]} (38... gxh6 39. Qxf6 Qd5 (39... Qxh5 40. Ne1 $11) (39... Qf1+ 40. Kh2 $16) 40. Ne1 $11) 39. Qd1 {[%emt 0:00:02]} (39. Qf5+ $142 Kxh6 40. Qf4+ Qg5 (40... Kxh5 41. Re5+ $18) 41. Qxg5+ Kxg5 42. Nxd4) 39... Qd3 {[%emt 0:00:06]} ({Not} 39... Qxh5 40. Qxd2 Rb1+ (40... Qxh6 41. Qxh6+ Kxh6 42. Nxd4 $11) (40... gxh6 41. Nxd4 Rb1+ 42. Re1 $17) 41. Re1 Rxe1+ (41... Qxh6 $2 {loses.} 42. Qxh6+ gxh6 43. Rxb1 $18) 42. Nxe1 $17) 40. Nxf7 {[%emt 0:00:13]} Rb1 {[%emt 0:00:05]} (40... Nf3+ 41. Qxf3 Qxc2 42. Ng5+ Kh8 43. Kg2 $14) 41. Ng5+ {[%emt 0:00:08]} Kh6 {[%emt 0:00:02]} 42. Nf7+ {[%emt 0:00:03]} Kh7 {[%emt 0:00:03]} 43. Ng5+ $1 {[%emt 0:00:02]} Kh6 $2 {[%emt 0:00:02]} ({Black should try} 43... Kg8 $19 44. Qxb1 Nxb1) 44. Nf7+ {[%emt 0:00:05]} 1/2-1/2

[Event "CCT Final-RR 2024"]
[Site "Oslo"]
[Date "2024.12.18"]
[Round "4"]
[White "Keymer, Vincent"]
[Black "So, Wesley"]
[Result "1-0"]
[ECO "A20"]
[WhiteElo "2733"]
[BlackElo "2747"]
[Annotator "TA"]
[PlyCount "117"]
[EventDate "2024.12.11"]
[EventType "tourn"]
[EventCountry "NOR"]
[SourceTitle "playchess.com"]
[Source "ChessBase"]
[SourceQuality "1"]
[TimeControl "600+2"]

{[%evp 9,117,0,0,0,1,5,0,11,8,-20,0,-26,0,-29,10,2,-5,0,-4,-16,-4,-37,-12,-16,0,0,0,0,0,0,4,-83,23,-23,0,0,0,-20,16,8,20,29,43,0,0,0,0,0,0,2,10,7,10,0,21,-77,0,0,58,89,60,68,62,64,73,33,39,0,243,242,29990,29991,29995,1093,29967,848,1323,1215,1216,1182,1518,1394,1530,1381,29988,1961,29975,29972,2133,917,1570,338,643,656,29973,379,319,0,670,606,663,641,933,933,5493,2897,29989,29990,29994,29995]} 1. c4 {[%emt 0:00:02]} e5 {[%emt 0:00:16]} 2. d3 {[%emt 0:00:02]} Nf6 {[%emt 0:00:09]} 3. Nf3 {[%emt 0:00:01]} Nc6 {[%emt 0:00:01]} 4. a3 {[%emt 0:00:04]} a5 {[%emt 0:00:16]} 5. Nc3 {[%emt 0:00:04]} d5 {[%emt 0:00:11]} 6. cxd5 {[%emt 0:00:01]} Nxd5 {[%emt 0:00:01]} 7. e4 {[%emt 0:00:01]} Nxc3 {[%emt 0:00:57]} 8. bxc3 {[%emt 0:00:02]} Bc5 {[%emt 0:00:01]} 9. Be2 {[%emt 0:00:46]} O-O {[%emt 0:00:03]} 10. O-O {[%emt 0:00:02]} Bg4 {[%emt 0:02:00]} 11. h3 {[%emt 0:00:02]} Bh5 {[%emt 0:00:02]} 12. g4 {[%emt 0:01:02]} Bg6 {[%emt 0:00:02]} 13. a4 {[%emt 0:01:00]} b6 {[%emt 0:00:22]} 14. Qb3 {[%emt 0:01:09]} Kh8 {[%emt 0:00:24]} 15. Bb2 {[%emt 0:00:43]} f6 {[%emt 0:00:08]} 16. Rad1 {[%emt 0:00:06]} Bd6 {[%emt 0:00:23]} 17. Qc2 {[%emt 0:00:14]} Qe8 {[%emt 0:00:05]} 18. Nh4 {[%emt 0:00:04]} Nd8 {[%emt 0:00:10]} 19. Bc1 {[%emt 0:00:23]} Ne6 {[%emt 0:00:07]} 20. Nf5 {[%emt 0:00:18]} (20. d4 $11) 20... Rd8 {[%emt 0:00:09]} (20... Nc5 $17 21. Nxd6 cxd6) 21. Be3 {[%emt 0:00:31]} (21. d4 $142) 21... Nc5 {[%emt 0:00:36]} 22. Ra1 {[%emt 0:00:07]} Ne6 {[%emt 0:00:06]} 23. d4 {[%emt 0:01:34] Repels Bc5} exd4 {[%emt 0:00:18]} 24. cxd4 {[%emt 0:00:01]} Nf4 {[%emt 0:00:18]} 25. Bb5 {[%emt 0:00:12]} (25. Nxd6 Nxe2+ 26. Qxe2 cxd6 $15) 25... Qe6 {[%emt 0:00:16]} 26. Nxd6 {[%emt 0:01:44]} Qxd6 {[%emt 0:00:02]} 27. f3 {[%emt 0:00:01]} Nd5 {[%emt 0:01:47]} 28. Bf2 $1 {[%emt 0:00:07]} Nf4 {[%emt 0:00:00]} 29. Kh1 {[%emt 0:00:07]} Nxh3 {[%emt 0:00:02]} 30. Be3 {[%emt 0:00:01]} Ng5 {[%emt 0:00:08]} 31. Rac1 {[%emt 0:00:17]} Rc8 {[%emt 0:00:46]} 32. Qh2 {[%emt 0:00:09] [#]} (32. Bc6 $11 {keeps the balance.}) 32... Qe7 {[%emt 0:00:22]} (32... Qa3 $6 33. Qe2 $11) (32... Nxf3 $1 $17 33. Rxf3 (33. Qxd6 $2 cxd6 34. e5 dxe5 $19) 33... Bxe4) 33. Kg1 {[%emt 0:00:03]} Be8 {[%emt 0:00:12]} ({Black should play} 33... c5 $11) 34. Ba6 $14 {[%emt 0:00:01]} Ra8 {[%emt 0:00:01]} 35. Rxc7 {[%emt 0:00:04]} (35. Qxc7 $2 Qxc7 36. Rxc7 Rxa6 $19) 35... Qa3 {[%emt 0:00:12]} 36. Bxg5 {[%emt 0:00:02][%cal Oc7g7]} fxg5 {[%emt 0:00:01] [#]} 37. Qe5 $1 {[%emt 0:00:01][%csl Gc7,LRg5,LRg7][%cal Re5g7] Some like it hot. White is more active.} Bf7 $1 {[%emt 0:00:11]} 38. Bc4 $40 {[%emt 0:00:03][%mdl 128] White is up to no good.} Qe3+ $2 {[%emt 0:00:03]} (38... Rae8 $11 {and Black has nothing to worry.} 39. Qxg5 Bg6) 39. Kg2 $18 {[%emt 0:00:02] Black is weak on the light squares} Rae8 $2 {[%emt 0:00:01]} (39... Rfe8 $18 40. Qb5 Bxc4 41. Qxc4 (41. Rxc4 h5 $11) 41... Rab8) 40. Rxf7 {[%emt 0:00:03][%csl Gf7][%cal Re5g7]} Rg8 {[%emt 0:00:00]} 41. Qd6 {[%emt 0:00:03]} (41. Rxg7 $142 Qe2+ 42. Kg3 (42. Bxe2 Rxe5 43. Rxg8+ Kxg8 $18) 42... Qg2+ 43. Kxg2 Rxg7 44. Qxe8+ Rg8 45. Qxg8#) 41... Rc8 {[%emt 0:00:10]} 42. Qd5 {[%emt 0:00:02]} (42. Rh1 $142 Qd2+ 43. Kg3 Rxc4 44. Qg6 (44. Qxb6 Rc2) 44... Qf4+ 45. Rxf4 gxf4+ 46. Kxf4 Rf8+ 47. Ke5) 42... Rgd8 {[%emt 0:00:03]} 43. Rd7 {[%emt 0:00:00]} Rg8 {[%emt 0:00:02]} 44. Rf2 {[%emt 0:00:01]} h6 {[%emt 0:00:02]} 45. Qe6 {[%emt 0:00:02][%cal Od7g7]} Qc3 {[%emt 0:00:02]} 46. Bd5 {[%emt 0:00:02]} Qa1 {[%emt 0:00:01]} 47. Qf7 {[%emt 0:00:03]} ({Stronger than} 47. Qxb6 Rc1 48. Qb5 (48. Qxa5 {is a self mate.} Rg1+ 49. Kh2 Rh1+ 50. Kg3 Qg1+ 51. Rg2 Rh3+ 52. Kxh3 Qh1+ 53. Rh2 Qxf3#) 48... Rg1+ 49. Kh3 Rh1+ 50. Rh2 Qe1 51. Rxh1 Qxh1+ 52. Kg3 Qg1+ 53. Kh3 Qh1+ 54. Kg3 Qg1+ 55. Kh3 Qh1+ $11) (47. e5 $142 Qxd4 48. Be4 Qxe4 49. fxe4 Rcd8 50. Rxd8 Rxd8 51. Qg6 (51. Qxb6 Rd1 52. e6 Kh7 53. e7 Rd7 54. e8=Q Rf7 55. Qxf7 Kh8 56. Qe8+ Kh7 57. Qbg6#) 51... Kg8 52. e6 (52. Qxb6 Ra8 $18)) 47... Rcf8 {[%emt 0:00:03]} 48. Qg6 {[%emt 0:00:01]} Rf6 {[%emt 0:00:01]} 49. Qh5 {[%emt 0:00:03]} Rgf8 {[%emt 0:00:00]} 50. Qh3 $2 {[%emt 0:00:02]} (50. e5 Rf4 51. e6 Qxa4 52. Ra2 (52. Be4 Rxe4 53. Qg6 Qxd7 $18)) 50... Qxd4 $2 {[%emt 0:00:02]} (50... Qxa4 51. Rc7 Qxd4) 51. Qg3 {[%emt 0:00:01]} Qxa4 {[%emt 0:00:01]} 52. Ra7 $2 {[%emt 0:00:02]} (52. Qc7 {mates} Rg6 53. e5 Kh7 54. Be4 Qxe4 55. fxe4 Rh8 56. Rf6 Rg8 57. Rxg6 (57. Rxb6 Rxb6 58. Qxb6 a4 $18)) 52... Qd4 {[%emt 0:00:01]} 53. Rd7 $2 {[%emt 0:00:03]} (53. Rb7 $18) 53... a4 $2 {[%emt 0:00:01][%mdl 8192]} (53... Qa4 $11 54. Qc7 Rg6) 54. e5 {[%emt 0:00:01][%cal Be4e5,Be5e6,Be6e7][%mdl 32]} Rf4 {[%emt 0:00:03]} 55. e6 {[%emt 0:00:01]} Re8 {[%emt 0:00:05]} 56. Re2 {[%emt 0:00:04] aiming for e7. Prevents Qe3} a3 {[%emt 0:00:01]} 57. e7 {[%emt 0:00:01] White wants to mate with Rd8.} Rf6 {[%emt 0:00:04]} 58. Rd8 {[%emt 0:00:02]} Qa4 {[%emt 0:00:01]} 59. Qb8 {[%emt 0:00:02]} 1-0

[Event "CCT Final-RR 2024"]
[Site "Oslo"]
[Date "2024.12.18"]
[Round "4"]
[White "Vachier-Lagrave, Maxime"]
[Black "Carlsen, Magnus"]
[Result "1/2-1/2"]
[ECO "C77"]
[WhiteElo "2731"]
[BlackElo "2831"]
[Annotator "TA"]
[PlyCount "122"]
[EventDate "2024.12.11"]
[EventType "tourn"]
[EventCountry "NOR"]
[SourceTitle "playchess.com"]
[Source "ChessBase"]
[SourceQuality "1"]
[TimeControl "600+2"]

{[%evp 63,122,141,137,139,133,133,139,135,154,149,189,184,175,182,181,182,191,175,305,282,248,217,194,129,144,143,135,103,106,103,81,0,0,0,0,0,0,0,0,-8,0,0,0,0,0,0,0,0,0,0,6,-2035,-1673,-1756,0,0,0,0,0,0,0]} 1. e4 {[%emt 0:00:05]} e5 {[%emt 0:03:09]} 2. Nf3 {[%emt 0:00:03]} Nc6 {[%emt 0:00:03]} 3. Bb5 {[%emt 0:00:03]} a6 {[%emt 0:00:03]} 4. Ba4 {[%emt 0:00:03]} Nf6 {[%emt 0:00:03]} 5. O-O {[%emt 0:00:04]} Be7 {[%emt 0:00:05]} 6. d3 {[%emt 0:00:03]} b5 {[%emt 0:00:03]} 7. Bb3 {[%emt 0:00:03]} O-O {[%emt 0:00:04]} 8. Nc3 {[%emt 0:00:03]} d6 {[%emt 0:00:03]} 9. a3 {[%emt 0:00:03]} Rb8 {[%emt 0:00:02] C77: Ruy Lopez: 3...a6 4 Ba4 Nf6, unusual lines.} 10. h3 {[%emt 0:00:05]} h6 {[%emt 0:00:04]} 11. Ne2 {[%emt 0:00:13]} Re8 {[%emt 0:00:07]} 12. Ng3 {[%emt 0:00:04]} Bf8 {[%emt 0:00:03]} 13. c3 $146 {[%emt 0:00:06]} ({Predecessor:} 13. Nh2 Be6 14. Bxe6 Rxe6 15. c3 d5 16. Qf3 d4 17. Ng4 Nxg4 18. hxg4 dxc3 19. bxc3 {0-1 Trent,L (2403)-Shuvalova,P (2506) I'M Not A GM Final KO blitz 2023 (1.24)}) 13... Be6 {[%emt 0:00:15]} 14. Bc2 {[%emt 0:00:04]} d5 {[%emt 0:00:03]} 15. b4 {[%emt 0:00:04]} dxe4 {[%emt 0:00:11]} 16. dxe4 {[%emt 0:00:03]} Qxd1 {[%emt 0:00:03]} 17. Rxd1 {[%emt 0:00:03]} Red8 {[%emt 0:00:04]} 18. Rxd8 {[%emt 0:00:20]} Rxd8 {[%emt 0:00:05]} 19. a4 {[%emt 0:00:03]} Ne8 {[%emt 0:00:36]} 20. axb5 {[%emt 0:00:15]} axb5 {[%emt 0:00:03]} 21. Ra6 {[%emt 0:00:31]} Bd7 {[%emt 0:00:04]} 22. Nf1 {[%emt 0:00:03]} Nd6 {[%emt 0:00:53]} 23. Ne3 {[%emt 0:00:06]} f6 {[%emt 0:00:03]} 24. Nd2 {[%emt 0:00:53]} Ne7 {[%emt 0:00:08]} 25. Nb3 {[%emt 0:00:05]} Bc6 {[%emt 0:00:16]} 26. Nc5 {[%emt 0:00:10]} Ra8 {[%emt 0:00:04]} 27. Bb3+ {[%emt 0:00:28]} Kh7 {[%emt 0:00:15]} 28. Rxa8 {[%emt 0:00:03]} Bxa8 {[%emt 0:00:03]} 29. Ne6 {[%emt 0:00:12]} Ng6 {[%emt 0:00:02]} 30. f3 {[%emt 0:00:10]} c6 {[%emt 0:00:06]} 31. Nf5 {[%emt 0:00:03]} Nc4 {[%emt 0:00:50]} 32. Nxf8+ {[%emt 0:00:21]} (32. Bxc4 $18 bxc4 33. Be3) 32... Nxf8 $16 {[%emt 0:00:03]} 33. Bxc4 {[%emt 0:00:03]} bxc4 {[%emt 0:00:03]} 34. Nd6 {[%emt 0:00:03]} Ne6 {[%emt 0:00:06]} 35. Be3 {[%emt 0:00:06]} g5 {[%emt 0:00:04]} 36. Nxc4 {[%emt 0:00:11]} Bb7 {[%emt 0:00:07]} 37. Na5 {[%emt 0:00:03]} Ba8 {[%emt 0:00:03]} 38. Kf2 {[%emt 0:00:55]} Kg6 {[%emt 0:00:03]} 39. Ke2 {[%emt 0:00:11]} h5 {[%emt 0:00:03]} 40. g4 {[%emt 0:00:09]} h4 {[%emt 0:00:06]} (40... hxg4 {keeps fighting.} 41. hxg4 Kf7) 41. Kd3 {[%emt 0:00:05]} Kf7 {[%emt 0:00:04]} 42. Kc4 {[%emt 0:00:09]} Ke7 {[%emt 0:00:03]} 43. b5 {[%emt 0:00:05]} (43. Kb3 $18) 43... cxb5+ {[%emt 0:00:09]} 44. Kxb5 {[%emt 0:00:03]} Kd7 {[%emt 0:00:03]} 45. c4 {[%emt 0:00:10]} Nd8 {[%emt 0:00:03]} 46. Kb6 {[%emt 0:00:37]} Bc6 {[%emt 0:00:07]} 47. Nxc6 {[%emt 0:00:12]} (47. Nb3 $1 $16) 47... Nxc6 $11 {[%emt 0:00:03]} 48. c5 {[%emt 0:00:03]} Nd8 {[%emt 0:00:21]} 49. Bd2 {[%emt 0:00:05]} Nc6 $1 {[%emt 0:00:03]} 50. Bc3 {[%emt 0:00:22]} Nd8 {[%emt 0:00:04]} 51. Kb5 {[%emt 0:00:22]} Nc6 {[%emt 0:00:07]} 52. Ka6 {[%emt 0:00:09]} Kc7 {[%emt 0:00:15]} 53. Kb5 {[%emt 0:00:11]} Kd7 {[%emt 0:00:21]} 54. Kb6 {[%emt 0:00:03]} Nd8 {[%emt 0:00:03]} 55. Be1 {[%emt 0:00:10]} Nc6 $1 {[%emt 0:00:05]} 56. Bc3 {[%emt 0:00:27]} Nd8 {[%emt 0:00:07] [#]} 57. f4 $2 {[%emt 0:00:00][%mdl 8192]} (57. Ba5 $1 $11) 57... exf4 $19 {[%emt 0:00:03]} 58. Bxf6 {[%emt 0:00:00] [#]} f3 $2 {[%emt 0:00:03]} ({Black should play} 58... Ne6 $1 $19 {...f3 is the strong threat.} 59. Bc3 f3) 59. Bd4 $1 $11 {[%emt 0:00:00]} (59. Bxg5 f2 60. Kb5 f1=Q+ $19 (60... f1=R $2 61. e5 $19)) (59. Bxd8 Kc8 (59... Kxd8 60. Kb7 $11) (59... f2 $2 60. Bxg5 f1=Q 61. c6+ Kc8 62. Bxh4 $19) 60. Bxg5 f2 61. Bxh4 f1=Q $19 (61... f1=R $2 62. e5 $18)) 59... Nc6 {[%emt 0:00:03]} (59... Kc8 $5 60. e5 $8 Ne6 $11) 60. Be3 {[%emt 0:00:00]} Ne5 {[%emt 0:00:04]} 61. Kb7 $1 {[%emt 0:00:00]} (61. Bxg5 f2 62. Kb5 f1=Q+ (62... f1=R $2 63. c6+ Nxc6 64. Kc5 $19) 63. Kb4 Nc6+ (63... Qxh3 {is a self mate.} 64. Bh6 Qf3 65. Bg7 Nc6+ 66. Ka4 Qd1+ 67. Ka3 Qc2 68. g5 Na5 69. Kb4 Qb3+ 70. Kxa5 Kc6 71. Bh8 Qb5#) 64. Kc3 Qxh3+ 65. Kd2 Qg2+ (65... Qxg4 {leads to mate.} 66. Bxh4 Qxh4 67. Kd3 Qf2 68. e5 Nxe5+ 69. Kc3 Qe3+ 70. Kc2 Nc4 71. c6+ Kxc6 72. Kb1 Qd2 73. Ka1 Qb2#) 66. Kd3 Qf3+ (66... Qxg4 67. Bf6 h3 68. Be5 Nxe5+ 69. Kd2 h2 70. Kc3 Qxe4 71. Kb3 h1=Q 72. c6+ Kxc6 73. Ka3 Qa1+ 74. Kb3 Qc4#) 67. Be3 h3 (67... Qxg4 68. Bf2 h3 69. Bg1 Qxg1 70. e5 h2 71. Kc3 h1=Q 72. e6+ Kxe6 73. Kb3 Qd5+ 74. Kb2 Qh2+ 75. Kc3 Qhd2#) 68. Kc4 h2 (68... Qxe3 69. e5 h2 70. e6+ Kxe6 71. Kb5 h1=Q 72. Ka6 Qb1 73. g5 Qe2#) (68... Qe2+ 69. Kb3 Qxe3+ 70. Kc4 h2 71. e5 h1=Q 72. e6+ Qxe6+ 73. Kd3 Qd1+ 74. Kc3 Qeb3#) 69. e5 Qxe3 (69... h1=B 70. Kd3 Qd1+ 71. Bd2 Bd5 72. e6+ Kxe6 73. g5 Ne5+ 74. Kc3 Qb3+ 75. Kd4 Nf3#) (69... Qe2+ 70. Kb3 h1=Q 71. e6+ Kxe6 72. Bd2 Qb1+ 73. Ka3 Qa6+ 74. Ba5 Qxa5#) 70. e6+ Kxe6 (70... Qxe6+ 71. Kd3 Qxg4 72. Ke3 h1=Q 73. Kd3 Qd4+ 74. Ke2 Qhd1#) 71. g5 h1=Q (71... h1=B 72. Kb5 Qb3+ 73. Ka6 Be4 74. g6 Bd3#) 72. Kb5 Qb3+ 73. Ka6 Qf1#) 61... Nc6 {[%emt 0:00:01]} 1/2-1/2